[Event "Early-Titled-Tuesday-Blitz-January-23-2024"]
[Site "Chess.com"]
[Date "2024.01.23"]
[Round "9"]
[White "FMVolodymyrSakun"]
[Black "pfalcon1949"]
[Result "1-0"]
[WhiteElo "2513"]
[BlackElo "2033"]
[TimeControl "180+1"]
[EndTime "9:46:26 PST"]
[Termination "FMVolodymyrSakun won by checkmate"]

1. e4 {[%clk 0:02:44.5]} 1... e6 {[%clk 0:02:59.3]} 2. d3 {[%clk 0:02:41.9]}
2... d5 {[%clk 0:02:58.8]} 3. Nd2 {[%clk 0:02:41.9]} 3... c5 {[%clk 0:02:58.8]}
4. g3 {[%clk 0:02:42.1]} 4... Bd6 {[%clk 0:02:57.2]} 5. Bg2 {[%clk 0:02:43]}
5... Ne7 {[%clk 0:02:54.6]} 6. f4 {[%clk 0:02:40.4]} 6... Nbc6 {[%clk
0:02:53.7]} 7. Ngf3 {[%clk 0:02:40.2]} 7... O-O {[%clk 0:02:52.7]} 8. O-O {[%clk
0:02:37.7]} 8... b6 {[%clk 0:02:50.1]} 9. e5 {[%clk 0:02:29.7]} 9... Bc7 {[%clk
0:02:49]} 10. Re1 {[%clk 0:02:26.4]} 10... a5 {[%clk 0:02:47.3]} 11. Nf1 {[%clk
0:02:24.6]} 11... a4 {[%clk 0:02:47.5]} 12. a3 {[%clk 0:02:24.7]} 12... Ba6
{[%clk 0:02:46.5]} 13. g4 {[%clk 0:02:20.7]} 13... Rb8 {[%clk 0:02:30.8]} 14.
Ng3 {[%clk 0:02:19.5]} 14... Nd4 {[%clk 0:02:22.8]} 15. Nxd4 {[%clk 0:01:34.3]}
15... cxd4 {[%clk 0:02:23.7]} 16. Ne2 {[%clk 0:01:30.5]} 16... Nc6 {[%clk
0:02:13.3]} 17. Kh1 {[%clk 0:01:13.3]} 17... b5 {[%clk 0:02:12.8]} 18. b3 {[%clk
0:01:12.9]} 18... b4 {[%clk 0:01:51.2]} 19. bxa4 {[%clk 0:01:08.2]} 19... Ba5
{[%clk 0:01:43.5]} 20. axb4 {[%clk 0:01:04.6]} 20... Bxb4 {[%clk 0:01:37.4]} 21.
Rf1 {[%clk 0:00:56.4]} 21... Bc3 {[%clk 0:01:36.6]} 22. Ra3 {[%clk 0:00:51]}
22... Qb6 {[%clk 0:01:32.9]} 23. Nxc3 {[%clk 0:00:45.5]} 23... dxc3 {[%clk
0:01:31.7]} 24. Rxc3 {[%clk 0:00:45.8]} 24... Rfc8 {[%clk 0:01:22.1]} 25. Rb3
{[%clk 0:00:42.7]} 25... Qd4 {[%clk 0:01:12.4]} 26. Rxb8 {[%clk 0:00:40.1]}
26... Rxb8 {[%clk 0:01:13.3]} 27. a5 {[%clk 0:00:31.9]} 27... Rb1 {[%clk
0:01:00.8]} 28. Qe2 {[%clk 0:00:20.4]} 28... Qa1 {[%clk 0:00:59]} 29. Bd2 {[%clk
0:00:19.6]} 29... Rxf1+ {[%clk 0:00:58.4]} 30. Qxf1 {[%clk 0:00:19.6]} 30... Qb2
{[%clk 0:00:57.3]} 31. Qc1 {[%clk 0:00:18.5]} 31... Qd4 {[%clk 0:00:56]} 32. Be3
{[%clk 0:00:17.9]} 32... Qa4 {[%clk 0:00:56.3]} 33. c4 {[%clk 0:00:15.2]} 33...
dxc4 {[%clk 0:00:51.1]} 34. d4 {[%clk 0:00:13.9]} 34... Ne7 {[%clk 0:00:46.7]}
35. f5 {[%clk 0:00:12.6]} 35... exf5 {[%clk 0:00:45.9]} 36. gxf5 {[%clk
0:00:12.5]} 36... Nxf5 {[%clk 0:00:46.1]} 37. Bg1 {[%clk 0:00:12.6]} 37... g6
{[%clk 0:00:41.3]} 38. Be4 {[%clk 0:00:12.4]} 38... Ng7 {[%clk 0:00:29.8]} 39.
Qb1 {[%clk 0:00:11.2]} 39... h5 {[%clk 0:00:22]} 40. Bg2 {[%clk 0:00:10.7]}
40... Qb3 {[%clk 0:00:21]} 41. Qc1 {[%clk 0:00:10.6]} 41... c3 {[%clk
0:00:19.2]} 42. d5 {[%clk 0:00:11]} 42... c2 {[%clk 0:00:18.4]} 43. d6 {[%clk
0:00:11]} 43... Bb5 {[%clk 0:00:18.5]} 44. Be3 {[%clk 0:00:11.2]} 44... Bd7
{[%clk 0:00:17.5]} 45. a6 {[%clk 0:00:10.5]} 45... Qb1 {[%clk 0:00:17.2]} 46. a7
{[%clk 0:00:10.3]} 46... Bc6 {[%clk 0:00:12.5]} 47. Bxc6 {[%clk 0:00:09.7]}
47... Nf5 {[%clk 0:00:10.1]} 48. a8=Q+ {[%clk 0:00:09.7]} 48... Kg7 {[%clk
0:00:08.5]} 49. Bd2 {[%clk 0:00:07.5]} 49... Qb3 {[%clk 0:00:07]} 50. Bg2 {[%clk
0:00:06.7]} 50... Qd3 {[%clk 0:00:06.2]} 51. Qe4 {[%clk 0:00:05.9]} 51... Qxe4
{[%clk 0:00:05.1]} 52. Bxe4 {[%clk 0:00:06]} 52... Nd4 {[%clk 0:00:04.6]} 53.
Be3 {[%clk 0:00:05.7]} 53... Ne6 {[%clk 0:00:04.9]} 54. Qxc2 {[%clk 0:00:05.9]}
54... h4 {[%clk 0:00:05.4]} 55. Bd5 {[%clk 0:00:05.9]} 55... h3 {[%clk
0:00:06.3]} 56. Bxe6 {[%clk 0:00:06]} 56... fxe6 {[%clk 0:00:06.8]} 57. d7
{[%clk 0:00:06.2]} 57... g5 {[%clk 0:00:07.4]} 58. Bxg5 {[%clk 0:00:05.5]} 58...
Kf7 {[%clk 0:00:07.5]} 59. Qh7+ {[%clk 0:00:06.1]} 59... Kf8 {[%clk 0:00:07]}
60. d8=Q# {[%clk 0:00:06.6]} 1-0

[Event "Early-Titled-Tuesday-Blitz-January-23-2024"]
[Site "Chess.com"]
[Date "2024.01.23"]
[Round "9"]
[White "Makswolf200817"]
[Black "Jumbo"]
[Result "0-1"]
[WhiteElo "2739"]
[BlackElo "2964"]
[TimeControl "180+1"]
[EndTime "9:46:27 PST"]
[Termination "Jumbo won on time"]

1. e4 {[%clk 0:03:00.1]} 1... c5 {[%clk 0:02:54.3]} 2. Nf3 {[%clk 0:02:59.8]}
2... d6 {[%clk 0:02:53.7]} 3. d4 {[%clk 0:03:00]} 3... cxd4 {[%clk 0:02:54.3]}
4. Nxd4 {[%clk 0:03:00.1]} 4... Nf6 {[%clk 0:02:54]} 5. Nc3 {[%clk 0:03:00.3]}
5... Nc6 {[%clk 0:02:54.6]} 6. f3 {[%clk 0:02:57.1]} 6... e5 {[%clk 0:02:54]} 7.
Nb3 {[%clk 0:02:56.9]} 7... Be7 {[%clk 0:02:50.4]} 8. Be3 {[%clk 0:02:56.4]}
8... a5 {[%clk 0:02:44.4]} 9. Bb5 {[%clk 0:02:39.8]} 9... O-O {[%clk 0:02:44]}
10. Qd2 {[%clk 0:02:39]} 10... Be6 {[%clk 0:02:42]} 11. O-O-O {[%clk 0:02:35.7]}
11... Qc7 {[%clk 0:02:27.2]} 12. Kb1 {[%clk 0:02:29.9]} 12... Na7 {[%clk
0:01:29.2]} 13. Bxa7 {[%clk 0:02:12.9]} 13... Rxa7 {[%clk 0:01:26]} 14. a4
{[%clk 0:02:13.3]} 14... Raa8 {[%clk 0:01:25]} 15. g4 {[%clk 0:02:11]} 15...
Rfd8 {[%clk 0:01:15.1]} 16. g5 {[%clk 0:02:03]} 16... Nh5 {[%clk 0:01:12.2]} 17.
h4 {[%clk 0:01:59.2]} 17... Nf4 {[%clk 0:01:03.3]} 18. Nd5 {[%clk 0:01:46.8]}
18... Bxd5 {[%clk 0:01:01.3]} 19. exd5 {[%clk 0:01:47]} 19... Rf8 {[%clk
0:00:52.7]} 20. Nd4 {[%clk 0:01:20.3]} 20... Nxd5 {[%clk 0:00:19.6]} 21. Nf5
{[%clk 0:01:20.4]} 21... Nf4 {[%clk 0:00:20.2]} 22. Nxe7+ {[%clk 0:01:20.3]}
22... Qxe7 {[%clk 0:00:21.1]} 23. Qxd6 {[%clk 0:01:20.7]} 23... Qxd6 {[%clk
0:00:21.6]} 24. Rxd6 {[%clk 0:01:21.3]} 24... Rfd8 {[%clk 0:00:20.9]} 25. Rhd1
{[%clk 0:01:21.6]} 25... Rxd6 {[%clk 0:00:21.4]} 26. Rxd6 {[%clk 0:01:22.4]}
26... g6 {[%clk 0:00:21.2]} 27. Rb6 {[%clk 0:01:16.4]} 27... Ra7 {[%clk
0:00:19]} 28. Bc4 {[%clk 0:01:12.5]} 28... Ng2 {[%clk 0:00:18.9]} 29. Rb5 {[%clk
0:01:05.6]} 29... Nxh4 {[%clk 0:00:16.9]} 30. Bd5 {[%clk 0:00:52]} 30... Nf5
{[%clk 0:00:11.4]} 31. c3 {[%clk 0:00:37.8]} 31... Kg7 {[%clk 0:00:09.7]} 32.
Rxb7 {[%clk 0:00:34.8]} 32... Rxb7 {[%clk 0:00:09.1]} 33. Bxb7 {[%clk
0:00:35.7]} 33... Nd6 {[%clk 0:00:08.8]} 34. Bd5 {[%clk 0:00:35.8]} 34... f6
{[%clk 0:00:09]} 35. gxf6+ {[%clk 0:00:35.8]} 35... Kxf6 {[%clk 0:00:09.5]} 36.
b4 {[%clk 0:00:36.7]} 36... h5 {[%clk 0:00:07.3]} 37. b5 {[%clk 0:00:21.7]}
37... h4 {[%clk 0:00:07.4]} 38. c4 {[%clk 0:00:20.3]} 38... e4 {[%clk
0:00:07.6]} 39. fxe4 {[%clk 0:00:12.8]} 39... Ke5 {[%clk 0:00:07.4]} 40. c5
{[%clk 0:00:13.5]} 40... h3 {[%clk 0:00:07.7]} 41. cxd6 {[%clk 0:00:11.1]} 41...
h2 {[%clk 0:00:07.1]} 42. d7 {[%clk 0:00:12]} 42... h1=Q+ {[%clk 0:00:06.7]} 43.
Kb2 {[%clk 0:00:12.9]} 43... Qh4 {[%clk 0:00:07.3]} 44. b6 {[%clk 0:00:10.6]}
44... Qd8 {[%clk 0:00:07.6]} 45. b7 {[%clk 0:00:11]} 45... Kd6 {[%clk
0:00:07.6]} 46. Kc3 {[%clk 0:00:10.1]} 46... Kxd7 {[%clk 0:00:07.8]} 47. Kd4
{[%clk 0:00:09.1]} 47... Qb6+ {[%clk 0:00:07.8]} 48. Ke5 {[%clk 0:00:09.5]}
48... Qd6+ {[%clk 0:00:07.6]} 49. Kd4 {[%clk 0:00:10]} 49... Qb4+ {[%clk
0:00:06.2]} 50. Ke5 {[%clk 0:00:09.8]} 50... Qe7+ {[%clk 0:00:06.3]} 51. Kf4
{[%clk 0:00:10.2]} 51... Kc7 {[%clk 0:00:06.5]} 52. e5 {[%clk 0:00:08.1]} 52...
Qh4+ {[%clk 0:00:06.4]} 53. Kf3 {[%clk 0:00:08]} 53... Qh3+ {[%clk 0:00:05.5]}
54. Kf4 {[%clk 0:00:08.2]} 54... Qf5+ {[%clk 0:00:05.6]} 0-1

[Event "Early-Titled-Tuesday-Blitz-January-23-2024"]
[Site "Chess.com"]
[Date "2024.01.23"]
[Round "9"]
[White "Young_Catalan_Player09"]
[Black "atalz0"]
[Result "0-1"]
[WhiteElo "2557"]
[BlackElo "2480"]
[TimeControl "180+1"]
[EndTime "9:46:27 PST"]
[Termination "atalz0 won by checkmate"]

1. e4 {[%clk 0:02:54.8]} 1... d5 {[%clk 0:02:59.9]} 2. exd5 {[%clk 0:02:51.8]}
2... Nf6 {[%clk 0:03:00]} 3. d4 {[%clk 0:02:50.9]} 3... Nxd5 {[%clk 0:03:00]} 4.
Nf3 {[%clk 0:02:49.4]} 4... Bg4 {[%clk 0:02:59.7]} 5. Be2 {[%clk 0:02:46.8]}
5... Nc6 {[%clk 0:02:59.3]} 6. O-O {[%clk 0:02:46.1]} 6... e6 {[%clk 0:02:59.3]}
7. c4 {[%clk 0:02:42.3]} 7... Nb6 {[%clk 0:02:59.3]} 8. Nc3 {[%clk 0:02:38]}
8... Be7 {[%clk 0:02:58.8]} 9. Be3 {[%clk 0:02:33.5]} 9... Bxf3 {[%clk
0:02:44.2]} 10. Bxf3 {[%clk 0:02:31.5]} 10... Nxc4 {[%clk 0:02:44.3]} 11. Bxc6+
{[%clk 0:02:31.2]} 11... bxc6 {[%clk 0:02:45.2]} 12. Qa4 {[%clk 0:02:31]} 12...
Nb6 {[%clk 0:02:45.6]} 13. Qxc6+ {[%clk 0:02:30.2]} 13... Qd7 {[%clk 0:02:46.2]}
14. Qf3 {[%clk 0:01:56.7]} 14... O-O {[%clk 0:02:43.7]} 15. Rac1 {[%clk
0:01:56.6]} 15... Rfb8 {[%clk 0:02:32.6]} 16. b3 {[%clk 0:01:53.1]} 16... a5
{[%clk 0:02:31.5]} 17. Rc2 {[%clk 0:01:49.3]} 17... a4 {[%clk 0:02:28.8]} 18.
Nxa4 {[%clk 0:01:47.5]} 18... Nxa4 {[%clk 0:02:27.8]} 19. bxa4 {[%clk
0:01:46.7]} 19... Rxa4 {[%clk 0:02:23.5]} 20. Rfc1 {[%clk 0:01:45]} 20... Bd6
{[%clk 0:02:23.2]} 21. g3 {[%clk 0:01:40.1]} 21... h6 {[%clk 0:02:15.9]} 22. Qg4
{[%clk 0:01:29.2]} 22... Kh7 {[%clk 0:02:03.3]} 23. Qe4+ {[%clk 0:01:27.1]}
23... f5 {[%clk 0:01:59.5]} 24. Qd3 {[%clk 0:01:26.4]} 24... Rba8 {[%clk
0:01:51.8]} 25. Qb3 {[%clk 0:01:21.3]} 25... Ra3 {[%clk 0:01:49.9]} 26. Qc4
{[%clk 0:01:18.1]} 26... R8a4 {[%clk 0:01:41.9]} 27. Qe2 {[%clk 0:01:13.1]}
27... Ra5 {[%clk 0:01:22.3]} 28. h4 {[%clk 0:01:08.6]} 28... Qb5 {[%clk
0:01:12.9]} 29. Qh5 {[%clk 0:00:43.8]} 29... f4 {[%clk 0:00:18.2]} 30. Qxb5
{[%clk 0:00:38.3]} 30... Rxb5 {[%clk 0:00:19.1]} 31. Bxf4 {[%clk 0:00:38.2]}
31... Bxf4 {[%clk 0:00:16.8]} 32. gxf4 {[%clk 0:00:37.3]} 32... Rf5 {[%clk
0:00:15.5]} 33. Rxc7 {[%clk 0:00:35.7]} 33... Rxf4 {[%clk 0:00:14.7]} 34. Re7
{[%clk 0:00:29.4]} 34... Rxh4 {[%clk 0:00:14.1]} 35. Rcc7 {[%clk 0:00:25.9]}
35... Rg4+ {[%clk 0:00:14]} 36. Kh2 {[%clk 0:00:25.6]} 36... Rg6 {[%clk
0:00:13.1]} 37. Ra7 {[%clk 0:00:23]} 37... Rxa7 {[%clk 0:00:12.5]} 38. Rxa7
{[%clk 0:00:23.9]} 38... Rg4 {[%clk 0:00:12.7]} 39. Rd7 {[%clk 0:00:22]} 39...
h5 {[%clk 0:00:11.5]} 40. a4 {[%clk 0:00:21.4]} 40... Kg6 {[%clk 0:00:11.4]} 41.
a5 {[%clk 0:00:21.2]} 41... Rg5 {[%clk 0:00:11.7]} 42. a6 {[%clk 0:00:21.1]}
42... Ra5 {[%clk 0:00:11.7]} 43. a7 {[%clk 0:00:21.7]} 43... Kf6 {[%clk
0:00:11.8]} 44. Kg3 {[%clk 0:00:20.2]} 44... g5 {[%clk 0:00:11.7]} 45. f3 {[%clk
0:00:18.4]} 45... Ra3 {[%clk 0:00:11.5]} 46. Rh7 {[%clk 0:00:17.7]} 46... g4
{[%clk 0:00:10.3]} 47. Rxh5 {[%clk 0:00:16.7]} 47... gxf3 {[%clk 0:00:09.9]} 48.
Rh7 {[%clk 0:00:15.7]} 48... Kf5 {[%clk 0:00:09.3]} 49. Rf7+ {[%clk 0:00:15.5]}
49... Ke4 {[%clk 0:00:09.4]} 50. Rf4+ {[%clk 0:00:16]} 50... Kd5 {[%clk
0:00:09.5]} 51. Rxf3 {[%clk 0:00:15.8]} 51... Rxa7 {[%clk 0:00:09.7]} 52. Rf4
{[%clk 0:00:15.6]} 52... Ra3+ {[%clk 0:00:08.5]} 53. Kf2 {[%clk 0:00:15.9]}
53... Rd3 {[%clk 0:00:08.8]} 54. Ke2 {[%clk 0:00:16.5]} 54... Rxd4 {[%clk
0:00:09.1]} 55. Rf7 {[%clk 0:00:16.8]} 55... Re4+ {[%clk 0:00:08.9]} 56. Kd3
{[%clk 0:00:15.8]} 56... Rh4 {[%clk 0:00:08.9]} 57. Ke2 {[%clk 0:00:15.6]} 57...
Rh3 {[%clk 0:00:08.9]} 58. Ke1 {[%clk 0:00:15.7]} 58... Ke4 {[%clk 0:00:08.1]}
59. Ke2 {[%clk 0:00:15.2]} 59... Rh2+ {[%clk 0:00:07.9]} 60. Kf1 {[%clk
0:00:15]} 60... e5 {[%clk 0:00:07.1]} 61. Rg7 {[%clk 0:00:13]} 61... Kf3 {[%clk
0:00:05.2]} 62. Re7 {[%clk 0:00:12.7]} 62... Rh1# {[%clk 0:00:04.9]} 0-1

[Event "Early-Titled-Tuesday-Blitz-January-23-2024"]
[Site "Chess.com"]
[Date "2024.01.23"]
[Round "9"]
[White "santosalberto1987"]
[Black "DarkAlekhine"]
[Result "1-0"]
[WhiteElo "2565"]
[BlackElo "2693"]
[TimeControl "180+1"]
[EndTime "9:46:28 PST"]
[Termination "santosalberto1987 won by resignation"]

1. e4 {[%clk 0:03:00.9]} 1... c5 {[%clk 0:02:59.5]} 2. Nf3 {[%clk 0:03:00.8]}
2... d6 {[%clk 0:03:00.1]} 3. Bb5+ {[%clk 0:03:00.5]} 3... Nd7 {[%clk
0:02:59.5]} 4. d4 {[%clk 0:03:00.5]} 4... cxd4 {[%clk 0:02:58.6]} 5. Qxd4 {[%clk
0:03:01.4]} 5... a6 {[%clk 0:02:58.9]} 6. Bxd7+ {[%clk 0:03:01.7]} 6... Bxd7
{[%clk 0:02:59.8]} 7. Nc3 {[%clk 0:03:02.1]} 7... e5 {[%clk 0:02:58.9]} 8. Qd3
{[%clk 0:03:02.5]} 8... h6 {[%clk 0:02:59.1]} 9. Nd2 {[%clk 0:03:02.7]} 9... Nf6
{[%clk 0:02:55.4]} 10. Nc4 {[%clk 0:03:00.5]} 10... Be6 {[%clk 0:02:55.6]} 11.
Ne3 {[%clk 0:02:59.3]} 11... Be7 {[%clk 0:02:55.2]} 12. O-O {[%clk 0:02:58.3]}
12... O-O {[%clk 0:02:54]} 13. Ned5 {[%clk 0:02:54.4]} 13... Rc8 {[%clk
0:02:53.4]} 14. Rd1 {[%clk 0:02:41.1]} 14... Nxd5 {[%clk 0:02:46.5]} 15. Nxd5
{[%clk 0:02:40.9]} 15... Bxd5 {[%clk 0:02:46.7]} 16. exd5 {[%clk 0:02:41.1]}
16... f5 {[%clk 0:02:45.8]} 17. c4 {[%clk 0:02:37.6]} 17... Qd7 {[%clk
0:02:39.2]} 18. b3 {[%clk 0:02:31.1]} 18... Bf6 {[%clk 0:02:29.8]} 19. Bb2
{[%clk 0:02:24.3]} 19... g6 {[%clk 0:02:20]} 20. Qd2 {[%clk 0:02:20.1]} 20...
Kh7 {[%clk 0:02:19.2]} 21. f4 {[%clk 0:02:19.7]} 21... Rce8 {[%clk 0:02:10]} 22.
fxe5 {[%clk 0:02:17]} 22... Bxe5 {[%clk 0:02:10.3]} 23. Bxe5 {[%clk 0:02:16.9]}
23... Rxe5 {[%clk 0:02:11.2]} 24. Re1 {[%clk 0:02:15.3]} 24... Rfe8 {[%clk
0:02:11.3]} 25. Rxe5 {[%clk 0:02:14.1]} 25... Rxe5 {[%clk 0:02:12.2]} 26. Re1
{[%clk 0:02:12.7]} 26... Qe7 {[%clk 0:02:12.6]} 27. Rxe5 {[%clk 0:02:11.9]}
27... Qxe5 {[%clk 0:02:13.5]} 28. c5 {[%clk 0:02:02.9]} 28... Kg7 {[%clk
0:02:02.7]} 29. cxd6 {[%clk 0:01:51.6]} 29... Qxd6 {[%clk 0:01:50.7]} 30. Qd4+
{[%clk 0:01:43.2]} 30... Qf6 {[%clk 0:01:46]} 31. Qd2 {[%clk 0:01:26.5]} 31...
Kf7 {[%clk 0:01:41.1]} 32. d6 {[%clk 0:01:17]} 32... Ke8 {[%clk 0:01:39.7]} 33.
h3 {[%clk 0:01:12.2]} 33... g5 {[%clk 0:01:37.3]} 34. d7+ {[%clk 0:01:08.1]}
34... Kd8 {[%clk 0:01:37.3]} 35. Qd5 {[%clk 0:01:08.6]} 35... Qb6+ {[%clk
0:01:31.6]} 36. Kh1 {[%clk 0:01:07.5]} 36... f4 {[%clk 0:01:01.4]} 37. Qf7
{[%clk 0:01:06.6]} 37... Qe3 {[%clk 0:01:01.2]} 38. Qf6+ {[%clk 0:00:43.7]}
38... Kxd7 {[%clk 0:01:00.4]} 39. Qxh6 {[%clk 0:00:44.3]} 39... f3 {[%clk
0:00:43.2]} 40. Qg7+ {[%clk 0:00:43.7]} 40... Ke6 {[%clk 0:00:24.4]} 41. Qg8+
{[%clk 0:00:28.4]} 41... Ke5 {[%clk 0:00:19.7]} 42. Qe8+ {[%clk 0:00:27.2]}
42... Kd4 {[%clk 0:00:20]} 43. Qd8+ {[%clk 0:00:17.8]} 43... Kc3 {[%clk
0:00:20.1]} 44. Qf6+ {[%clk 0:00:17.7]} 44... Kc2 {[%clk 0:00:10.7]} 45. Qxf3
{[%clk 0:00:18.3]} 45... Qe1+ {[%clk 0:00:03.3]} 46. Kh2 {[%clk 0:00:18.8]}
46... b5 {[%clk 0:00:01.8]} 47. Qg3 {[%clk 0:00:18.1]} 47... Qxg3+ {[%clk
0:00:01.9]} 48. Kxg3 {[%clk 0:00:18.2]} 48... Kb2 {[%clk 0:00:02.8]} 49. h4
{[%clk 0:00:18.6]} 49... gxh4+ {[%clk 0:00:03.7]} 50. Kxh4 {[%clk 0:00:19.2]}
50... Kxa2 {[%clk 0:00:04.2]} 51. g4 {[%clk 0:00:20.1]} 51... Kxb3 {[%clk
0:00:04.5]} 52. g5 {[%clk 0:00:21]} 52... a5 {[%clk 0:00:04.5]} 53. g6 {[%clk
0:00:21.9]} 53... a4 {[%clk 0:00:05.4]} 54. g7 {[%clk 0:00:22.7]} 54... a3
{[%clk 0:00:05.6]} 55. g8=Q+ {[%clk 0:00:23.6]} 55... Kb2 {[%clk 0:00:06]} 56.
Qg7+ {[%clk 0:00:23.3]} 56... Kb3 {[%clk 0:00:06]} 57. Qf7+ {[%clk 0:00:23.5]}
57... Kb2 {[%clk 0:00:06.2]} 58. Qf6+ {[%clk 0:00:23.9]} 58... Kb3 {[%clk
0:00:06.6]} 59. Qe6+ {[%clk 0:00:24.3]} 59... Ka4 {[%clk 0:00:06.4]} 60. Kg3
{[%clk 0:00:20.6]} 60... b4 {[%clk 0:00:06.1]} 61. Qc4 {[%clk 0:00:20.8]} 61...
Ka5 {[%clk 0:00:05.8]} 62. Qb3 {[%clk 0:00:20.7]} 62... Kb5 {[%clk 0:00:06]} 63.
Kf3 {[%clk 0:00:21.1]} 1-0

[Event "Early-Titled-Tuesday-Blitz-January-23-2024"]
[Site "Chess.com"]
[Date "2024.01.23"]
[Round "9"]
[White "jk13"]
[Black "Mikhail_Golubev"]
[Result "1-0"]
[WhiteElo "2637"]
[BlackElo "2507"]
[TimeControl "180+1"]
[EndTime "9:46:29 PST"]
[Termination "jk13 won on time"]

1. e4 {[%clk 0:02:52.8]} 1... c5 {[%clk 0:02:59.2]} 2. Nf3 {[%clk 0:02:51]} 2...
d6 {[%clk 0:02:56.8]} 3. c3 {[%clk 0:02:51.3]} 3... Nf6 {[%clk 0:02:56.4]} 4.
Be2 {[%clk 0:02:52]} 4... g6 {[%clk 0:02:53.2]} 5. O-O {[%clk 0:02:51.9]} 5...
Bg7 {[%clk 0:02:53.4]} 6. Bb5+ {[%clk 0:02:52.2]} 6... Nbd7 {[%clk 0:02:45.9]}
7. Re1 {[%clk 0:02:49.1]} 7... a6 {[%clk 0:02:39.3]} 8. Bf1 {[%clk 0:02:49.2]}
8... Ne5 {[%clk 0:02:19.1]} 9. Nxe5 {[%clk 0:02:38.9]} 9... dxe5 {[%clk
0:02:18.2]} 10. a4 {[%clk 0:02:39.8]} 10... b6 {[%clk 0:02:13.6]} 11. Bc4 {[%clk
0:02:33.6]} 11... O-O {[%clk 0:02:11.8]} 12. d3 {[%clk 0:02:29.7]} 12... Bd7
{[%clk 0:02:07.7]} 13. Nd2 {[%clk 0:02:20.1]} 13... b5 {[%clk 0:02:04]} 14. Ba2
{[%clk 0:02:20.7]} 14... Qc7 {[%clk 0:01:58.8]} 15. Qe2 {[%clk 0:02:17.3]} 15...
bxa4 {[%clk 0:01:47.3]} 16. Nc4 {[%clk 0:02:10.9]} 16... Bb5 {[%clk 0:01:47]}
17. Bg5 {[%clk 0:02:05.1]} 17... h6 {[%clk 0:01:39.5]} 18. Bh4 {[%clk
0:01:53.8]} 18... Nh5 {[%clk 0:01:39]} 19. Qf3 {[%clk 0:01:42.5]} 19... Rad8
{[%clk 0:01:30.4]} 20. Rad1 {[%clk 0:01:41.9]} 20... Bf6 {[%clk 0:01:12.1]} 21.
Bxf6 {[%clk 0:01:31.2]} 21... Nxf6 {[%clk 0:01:07.6]} 22. Qg3 {[%clk 0:01:31.5]}
22... Bxc4 {[%clk 0:01:00.8]} 23. Bxc4 {[%clk 0:01:30.9]} 23... Kg7 {[%clk
0:00:57.8]} 24. Ra1 {[%clk 0:01:18.7]} 24... Nd7 {[%clk 0:00:48.6]} 25. Qe3
{[%clk 0:00:54.8]} 25... Nb6 {[%clk 0:00:39.8]} 26. Bxa6 {[%clk 0:00:55]} 26...
Ra8 {[%clk 0:00:34.4]} 27. Bb5 {[%clk 0:00:54.9]} 27... Ra5 {[%clk 0:00:32.9]}
28. c4 {[%clk 0:00:46.7]} 28... Rfa8 {[%clk 0:00:32.5]} 29. Ra3 {[%clk
0:00:42.3]} 29... Nc8 {[%clk 0:00:23.6]} 30. Rea1 {[%clk 0:00:39.7]} 30... Nd6
{[%clk 0:00:23.8]} 31. Bxa4 {[%clk 0:00:34.8]} 31... Qb6 {[%clk 0:00:19.6]} 32.
b3 {[%clk 0:00:32.6]} 32... Qb4 {[%clk 0:00:17.4]} 33. h4 {[%clk 0:00:26.5]}
33... f6 {[%clk 0:00:12.5]} 34. h5 {[%clk 0:00:25]} 34... g5 {[%clk 0:00:12.7]}
35. Qh3 {[%clk 0:00:24.8]} 35... Qc3 {[%clk 0:00:10.1]} 36. Qe6 {[%clk
0:00:22.8]} 36... Qxd3 {[%clk 0:00:09.9]} 37. Qxe7+ {[%clk 0:00:22.3]} 37... Nf7
{[%clk 0:00:09.8]} 38. Be8 {[%clk 0:00:18.1]} 38... R8a7 {[%clk 0:00:08.2]} 39.
Qxf7+ {[%clk 0:00:13.8]} 39... Rxf7 {[%clk 0:00:07.4]} 40. Rxa5 {[%clk 0:00:14]}
40... Re7 {[%clk 0:00:07]} 41. Bg6 {[%clk 0:00:12.5]} 41... Qxb3 {[%clk
0:00:06.7]} 42. Ra7 {[%clk 0:00:10.7]} 42... Kf8 {[%clk 0:00:06.1]} 43. Ra8+
{[%clk 0:00:10.6]} 43... Kg7 {[%clk 0:00:06.1]} 44. Rd8 {[%clk 0:00:08.9]} 44...
Qxc4 {[%clk 0:00:05.8]} 45. Raa8 {[%clk 0:00:08.3]} 45... Rb7 {[%clk 0:00:05.5]}
46. Kh2 {[%clk 0:00:04.9]} 46... f5 {[%clk 0:00:05.2]} 47. exf5 {[%clk
0:00:04.4]} 47... g4 {[%clk 0:00:04.4]} 48. g3 {[%clk 0:00:03.9]} 48... Kf6
{[%clk 0:00:04]} 49. Rf8+ {[%clk 0:00:03.8]} 49... Kg5 {[%clk 0:00:03.7]} 50.
Rg8 {[%clk 0:00:03]} 50... Qe2 {[%clk 0:00:03.7]} 51. Bf7+ {[%clk 0:00:02]}
51... Kxf5 {[%clk 0:00:03.8]} 52. Bg6+ {[%clk 0:00:01.9]} 52... Kg5 {[%clk
0:00:03.3]} 53. Be4+ {[%clk 0:00:01.3]} 53... Kf6 {[%clk 0:00:03.1]} 54. Rg6+
{[%clk 0:00:01.9]} 54... Kf7 {[%clk 0:00:03]} 55. Bg2 {[%clk 0:00:02.3]} 55...
Rb2 {[%clk 0:00:01.8]} 56. Bd5+ {[%clk 0:00:02]} 56... Ke7 {[%clk 0:00:01.5]}
57. Ra7+ {[%clk 0:00:02.7]} 1-0